{"text_format":"1","workbook":"xlsx","n_sheets":7,"sheets":["Útmutató","Rezsiszabály","Paraméterek","Mintasor","Mintalap","MintaÖsszSor","MintaÖsszes"],"not_rendered":{"charts":0,"images":2,"macros":1,"external_links":0,"defined_names":1,"comments":0,"pivot_tables":0},"unopened":[],"bounds":{"document_bytes":16777216,"sheet_cells":100000,"rows_first":2000,"rows_last":500,"rows_between":2000,"halvings":0,"cell_chars":16384,"cell_head_chars":4096},"cells_cut":0,"cells_raw":0,"read":"whole","date_system":"1900"}

{"sheet":"Útmutató","index":0,"n_rows":57,"n_cols":2,"rows_kept":57,"cut":false,"hidden":false,"merged":[[51,0,51,1],[0,0,0,1],[2,0,2,1],[6,0,6,1],[16,0,16,1],[23,0,23,1],[36,0,36,1],[43,0,43,1],[50,0,50,1]]}
["Saját bevételek rezsi nyilvántartási algoritmusa: alapadatok leírása"]
[]
["Rekord típus"]
[]
["A oszlop:","\"A\": szerződés azonosító rekord, a szerződés alapadatait tárolja\n\"T\": tervezett bevételi rekord, a szerződés egy adott időpontra tervezett bevételét rögzíti\n\"B\": bevételi rekord, a felette lévő \"T\" rekordban rögzített tervezett bevétel tényszerű megvalósulását rögzíti (Amennyiben egy tervezett bevétel több részletben érkezik be, ezek további \"B\" rekordokban rögzíthetők.)\n\"S\": szumma, szerződés összegző rekord, a beérkezett bevételek és tartozások összege az adott szerződésre\n\"M\": mindösszesen, az adott szervezeti egység összes szerződésének bevételi és tartozási összege"]
[]
["Szerződés azonosító adatok"]
[]
["B oszlop:","szerződés (pályázat vagy ipari megbízás) rövid neve"]
["C oszlop:","témavezető neve"]
["D oszlop:","futamidő kezdete (dátum: éééé.hh.nn)"]
["E oszlop:","futamidő vége (dátum: éééé.hh.nn)"]
["F oszlop:","rezsifizetés halasztási dátuma (dátum: éééé.hh.nn)"]
["G oszlop:","témaszám (5 jegyű numerikus)"]
["H oszlop:","a szerződés által meghatározott (ennek hiányában belső megállapodás által rögzített) maximális rezsiszorzó mérték (százalék)"]
[]
["Bevételek pénzforgalmi adatai"]
[]
["I oszlop:","bevétel tervezett összege (Ft)"]
["J oszlop:","bevétel esedékessége, tervezett időpontja (dátum: éééé.hh.nn)"]
["K oszlop:","bevétel tény (Ft)"]
["L oszlop:","bevétel időpontja (dátum: éééé.hh.nn)\nAmennyiben a tervezett bevétel több részletben érkezik, az első bevételi részletet egy \"A\" vagy \"B\" típusú rekordban, minden további részletet külön \"R\" típusú rekordokban kell feltüntetni."]
[]
["Rezsi befizetések megvalósulása"]
[]
["M oszlop:","a bevételre alkalmazandó rezsiszabály \n(három karakteres kód: Téé, leírása a \"Rezsiszabályok\" lapon)"]
["N oszlop:","a befizethető maximális rezsi összege (Ft)"]
["O oszlop: ","egyetemi rezsi kötelezettség (Ft)"]
["P oszlop: ","kari rezsi kötelezettség (Ft)"]
["Q oszlop: ","intézeti rezsi (Ft)\nAmennyiben értéke negatív, az intézetnek befizetési kötelezettsége jelentkezik a karral szemben, mivel a maximális befizethető rezsi nem fedezi az egyetemi és kari rezsi kötelezettséget."]
["R oszlop:","tanszéki rezsi (Ft)\nAmennyiben itt pozitív összeg jelentkezik (a maximálisan levonható rezsiből az egyetemi, kari és intézeti rezsik után fennmaradó összeg), a tanszék, ill. a projekt ezt az összeget visszakapja."]
["S oszlop:","a teljes rezsi összeg átadásának időpontja a karra a rezsi gyűjtőszámláról  (dátum: éééé.hh.nn)"]
["T oszlop:","az intézeti rezsi visszaadásának időpontja (dátum: éééé.hh.nn)"]
["U oszlop:","az tanszéki rezsi visszaadásának időpontja (dátum: éééé.hh.nn)"]
["V oszlop:","az egyetemi rezsi átadásnak időpontja a GMF-re (dátum: éééé.hh.nn)"]
[]
["Önrész megelőlegezés a karról"]
[]
["W oszlop:","írásos megállapodás alapján (az intézetigazgató ellenjegyzésével) a kar által nyújtott előleg összege pályázati önrész képzésére (Ft)"]
["X oszlop:","az írásos megállapodásban rögzített törlesztési határidő  \n(dátum: éééé.hh.nn)"]
["Y oszlop:","az önrész előleg folyósításának időpontja  (dátum: éééé.hh.nn)"]
["Z oszlop:","az önrész előleg törlesztésének időpontja  (dátum: éééé.hh.nn)"]
[]
["Tartozások összesen"]
[]
["AA oszlop:","a szerződés összes tartozása a kar felé (még be nem fizetett rezsi és nem törlesztett önrész előleg összege) (Ft)"]
["AB oszlop:","a kar még meg nem fizetett tartozása az intézetnek (ha az intézet amiatt tartozik a karnak, mert a maximálisan befizetett rezsi nem fedezi a kötelező egyetemi és kari rezsi összegét, akkor itt negatív szám áll) (Ft)"]
["AC oszlop:","a kar még meg nem fizetett tartozása a tanszéknek (Ft)"]
["AD oszlop:","a kar még be nem fizetett tartozása a GMF-nek (egyetemi rezsi) (Ft)"]
[]
["Ebből esedékes tartozás"]
["A rezsi be- és kifizetések cellái (N - R oszlopok), és a W önrész megelőlegezés oszlop cellája sárga háttéren jelennek meg, ha az adott összeg kifizetése esedékessé válik."]
[]
["AE oszlop:","az AA oszlop összegének az a része, amely már lejárt tartozás (nem tartalmazza a rezsihalasztás határideje előtti rezsibefizetési kötelezettséget, illetve az önrész előleg törlesztési határideje előtti önrész előleget) (Ft)"]
["AF oszlop:","az AB oszlop összegének az a része, amely már lejárt tartozás (nem tartalmazza a rezsihalasztás határideje előtti rezsibefizetési kötelezettségből fakadó intézeti rezsi részt, valamint azt a kari tartozást sem, amely a szerződés által még be nem fizetett rezsinek az intézeti része lenne) (Ft) (Az intézet tartozásának esedékessége megegyezik a szerződés rezsi fizetési kötelezettségének esedékességi dátumával.)"]
["AG oszlop:","az AC oszlop összegének az a része, amely már lejárt tartozás (nem tartalmazza a rezsihalasztás határideje előtti rezsibefizetési kötelezettségből fakadó tanszéki rezsi részt, valamint azt a kari tartozást sem, amely a szerződés által még be nem fizetett rezsinek a tanszéki része lenne) (Ft)"]
["AH oszlop:","az AD oszlop összegének az a része, amely már lejárt tartozás (nem tartalmazza a rezsihalasztás határideje előtti rezsibefizetési kötelezettségből fakadó egyetemi rezsit) (Ft)"]

{"sheet":"Rezsiszabály","index":1,"n_rows":16,"n_cols":7,"rows_kept":16,"cut":false,"hidden":false,"merged":[[4,6,5,6],[2,0,2,6],[0,0,0,6],[4,3,4,5],[4,0,4,2]]}
["Rezsiszabály táblázat"]
[]
["Magyarázat\nÉrvényes: Az a költségvetési év, amelyben ez a szabály alkalmazandó (\"éééé\" alakban).\nTípus: 1 karakteres kód, értéke az A … Z (nagybetűk) közül választható, az adott költségvetési évben érvényes szabály típusa. \"A\" az alapértelmezés szerinti sajátbevételi szabály, \"B\" az alapértelmezés szerinti oktatási bevétel rezsi szabálya, a \"C\"...\"Z\" karakterek a kivételes kezelést igénylő esetek szabályai.\nKód: A rezsiszabályt azonosító 3 karakteres kód, \"Téé\" alakban. Automatikusan képződik a \"T\" típuskódból, és az érvényességi év utolsó két karakteréből.\nEgyetemi rezsi: Rezsiszorzó mérték (%). Minden bevételre fizetendő.\nKari rezsi: Rezsiszorzó mérték (%). Minden bevételre fizetendő.\nIntézeti rezsi: Rezsiszorzó mérték (%). Maximális érték. Az intézetnek átadandó.\n\nA rezsiszabály táblázat bővítése/rövidítése\nA táblázat a színezett sorokban tartalmazza a kitöltéséhez szükséges függvényeket. A táblázat tetszőleges számú sorral kiegészíthető egy színezett üres sor lemásolásával a táblázat alá. A táblázat sorai törölhetők is. Erre akkor lehet szükség, ha egy régi érvényességű szabályt már nem használunk a rezsielszámolásoknál. A törlés azért hasznos, mert a legördülő menük hosszát lerövidíti, ezáltal az áttekinthetőséget növeli. A rezsiszabályok sorrendje tetszőleges lehet. Amire figyelni kell: A rezsiszabályok között nem lehet üres sor!\n\nHibajelzések új szabály bevitelekor\n- Az érvényesség évének és a típusnak is kitöltöttnek kell lennie. Ellenkező esetben a kód értéke piros betűkkel világít.\n- Az új szabály kódja nem lehet azonos egyik korábbi kóddal sem. Az azonos kódok hátterei pirossá válnak. "]
[]
["Szabály azonosító",null,null,"Rezsiszorzó",null,null,"Leírás"]
["Érvényes","Típus","Kód","egyetemi","kari","intézeti"]
[2014,"A",{"$f":"B7&RIGHT(TEXT(A7,\"#\"),2)","v":"A14"},0.08,1.4999999999999999E-2,7.4999999999999997E-2,"Alapértelmezett szabály"]
[2014,"B",{"$f":"B8&RIGHT(TEXT(A8,\"#\"),2)","v":"B14"},0.14000000000000001,1.4999999999999999E-2,1.4999999999999999E-2,"Oktatási bevételek rezsije"]
[2013,"A","A13",0.1,7.0000000000000007E-2,0,"Tavalyi rezsiszabály"]
[2014,"C","C14",0.08,0,0,"ERC speciális szabály"]
[null,null,""]
[null,null,""]
[null,null,""]
[null,null,""]
[null,null,""]
[null,null,""]

{"sheet":"Paraméterek","index":2,"n_rows":43,"n_cols":3,"rows_kept":43,"cut":false,"hidden":false,"merged":[[24,0,24,2],[23,0,23,2],[15,0,15,2],[0,0,0,2],[1,0,1,2],[2,0,2,2],[13,0,13,2],[14,0,14,2],[12,0,12,2]]}
["Kézi beállítású paraméterek"]
["Ezek a paraméterek szabályozzák a nyilvántartási algoritmus viselkedését. Értéküket a használat során a felhasználók megváltoztathatják. Leírásukat és felhasználásukat minden paraméternél megadjuk."]
[]
["Paraméter","Érték","Használati utasítás"]
["Dátumtartomány \n(könyvelési időszak) kezdete","2010-01-01","Adatbeviteli ellenőrzési célra használt érték, a hibás dátumok kiszűrésére. A nyilvántartási algoritmus megakadályozza minden olyan dátum bevitelét, amely ennél az értéknél korábbi. Érdemes a paraméter értékét minél nagyobbra választani, a nagyobb adatmegbízhatóság érdekében. Amennyiben ez az érték túlságosan nagynak bizonyulna, a későbbi felhasználás során a paraméter értéke megváltoztatható. Legkisebb megadható értéke 2000.01.01."]
["Dátumtartomány \n(könyvelési időszak) vége","2030-12-30","Adatbeviteli ellenőrzési célra használt érték, a hibás dátumok kiszűrésére. A nyilvántartási algoritmus megakadályozza minden olyan dátum bevitelét, amely ennél az értéknél későbbi. Érdemes a paraméter értékét minél kisebbre választani, a nagyobb adatmegbízhatóság érdekében. Amennyiben ez az érték túlságosan kicsinek bizonyulna, a későbbi felhasználás során a paraméter értéke megváltoztatható. A legnagyobb megadható érték nincs korlátozva."]
["Nyilvántartási időszak kezdete","2000-01-01","Kitöltött nyilvántartó munkalap esetén információs célokra használható. Tételezzük fel, hogy a kitöltés során bevittünk 2012-es, 2013-as és 2014-es kezdési idejű projekteket is. Ha kíváncsiak vagyunk arra, hogy mely szerződések indultak 2014-et megelőzően, akkor írjuk be ennek a paraméternek az értékére a 2014.01.01 dátumot. Menjünk át ezután a nyilvántartó munkalapra, ahol színezett háttérrel jelennek meg a projekteknek azok az indulási/befejezési dátumai, amelyek az itt megadott nyilvántartási időszakon kívül esnek. Tájékozódásunk után állítsuk vissza a \"Nyilvántartási időszak kezdete\" paramétert egy olyan a dátumra, amely az összes nyilvántartani kívánt projekt kezdési időpontja előtt van. A paraméter legkisebb megadható értéke 2000.01.01."]
["Nyilvántartási időszak vége","3000-01-01","Kitöltött nyilvántartó munkalap esetén információs célokra használható. Segítségével tájékozódhatunk arról, hogy mely projektek induló/záró dátuma nem esik az itt megadott nyilvántartási időszakra. A paraméter legnagyobb megadható értéke nincs korlátozva."]
["Tervezett bevételi időszak kezdete","2000-01-01","Kitöltött nyilvántartó munkalap esetén információs célokra használható. Ha egy bevétel tervezett időpontja nem esik az itt megadott tervezett bevételi időszakra, a nyilvántartó munkalapon színezett háttérrel jelenik meg a bevétel tervezett dátuma. Tájékozódás után a paraméter visszaállítható egy 2000.01.01-nél nem korábbi dátumra."]
["Tervezett bevételi időszak vége","3000-01-01","Kitöltött nyilvántartó munkalap esetén információs célokra használható. Ha egy bevétel tervezett időpontja nem esik az itt megadott tervezett bevételi időszakra, a nyilvántartó munkalapon színezett háttérrel jelenik meg a bevétel tervezett dátuma. Tájékozódás után a paraméter visszaállítható egy a tervezett bevételi időszak kezdetét követő dátumra."]
["Bevételi időszak kezdete","2000-01-01","Kitöltött nyilvántartó munkalap esetén információs célokra használható. Ha egy bevétel tényleges időpontja nem esik az itt megadott bevételi időszakra, a nyilvántartó munkalapon színezett háttérrel jelenik meg a bevétel tény dátuma. Tájékozódás után a paraméter visszaállítható egy 2000.01.01-nél nem korábbi dátumra."]
["Bevételi időszak vége","3000-01-01","Kitöltött nyilvántartó munkalap esetén információs célokra használható. Ha egy bevétel tényleges időpontja nem esik az itt megadott bevételi időszakra, a nyilvántartó munkalapon színezett háttérrel jelenik meg a bevétel tény dátuma. Tájékozódás után a paraméter visszaállítható egy a bevételi időszak kezdetét követő dátumra."]
[]
["Automatikusan beállított paraméterek"]
["Ezek a paraméterek a nyilvántartási algoritmus működéséhez szükséges technikai változók. Értékük automatikusan kerül meghatározásra, a felhasználók által nem változtathatók. Az alábbi táblázat csak információs célokat szolgál."]
[]
["Paraméter","Érték","Leírás"]
["A rezsiszabályok kezdő sora",{"$f":"MATCH(TRUE,IF(ISNUMBER(Rezsiszabály!A:A),Rezsiszabály!A:A>=2000),0)","v":7},"A \"Rezsiszabály\" munkalapon található első olyan sor, ahol érvényes rezsiszabály bejegyzés található."]
["A rezsiszabályok száma",{"$f":"COUNTIF(Rezsiszabály!A:A,\">=2000\")","v":4},"A \"Rezsiszabály\" munkalapon található érvényes rezsiszabályok száma."]
["A rezsiszabályok utolsó sora",{"$f":"B18+B19-1","v":10},"A \"Rezsiszabály\" munkalapon található utolsó olyan sor, ahol érvényes rezsiszabály bejegyzés található."]
["Rezsiszabály tartomány",{"$f":"\"Rezsiszabály!C\"&B18&\":C\"&B20","v":"Rezsiszabály!C7:C10"},"A \"Rezsiszabály\" munkalapnak az a tartománya, amely a rezsiszabályok 3 karakteres kódját tartalmazza. Ez határozza meg a rezsiszabály kiválasztásához használt legördülő lista tartalmát."]
["Szabálykeresési tartomány",{"$f":"\"Rezsiszabály!C\"&B18&\":F\"&B20","v":"Rezsiszabály!C7:F10"},"A \"Rezsiszabály\" munkalapnak az a tartománya, amely a rezsiszabályok kódját és a hozzájuk tartozó három rezsiszorzó értéket tartalmazza. Az adott bevétel után befizetendő rezsiösszegek kiszámításánál használjuk."]
[]
["Szervezeti egységek listája"]
["A nyilvántartási algoritmus működéséhez az szükséges, hogy a szervezeti egységek teljes nevét tartalmazó cellatartomány (az A oszlop része) \"UnitNames\" elnevezésű legyen. Ez ellenőrizhető például a Képletek lap Definiált nevek csoportjában található Névkezelő gomb segítségével."]
[]
["A szervezeti egység neve","MGR kód","Lapfül név"]
["Fizikai Intézet",301,"Fiz. Int."]
["Atomfizika Tanszék",302,"Atomfizika"]
["Elméleti Fizika Tanszék",318,"Elm. Fiz."]
["Fizika Tanszék",303,"Fizika"]
["Matematika Intézet",322,"Mat. Int."]
["Algebra Tanszék",323,"Algebra"]
["Analízis Tanszék",324,"Analízis"]
["Differenciálegyenletek Tanszék",325,"Diff. Egy."]
["Geometria Tanszék",326,"Geometria"]
["Sztochasztika Tanszék",327,"Sztochasztika"]
["Kognitív Tudományi Tanszék",340,"KTT"]
["TTK Dékáni Hivatal",331,"Hivatal"]
["TTK Dékán (közös kari kiadások)",332,"Közös kari"]
["Nukleáris Technikai Intézet",308,"NTI"]
["Atomenergetikai Tanszék",334,"Atomenerg."]
["Nukleáris Technikai Tanszék",333,"Nukl.Tech.Tsz."]

{"sheet":"Mintasor","index":3,"n_rows":55,"n_cols":34,"rows_kept":55,"cut":false,"hidden":true,"merged":[[46,1,46,11],[52,1,52,11],[34,4,34,7],[35,1,35,7],[38,1,38,11],[43,4,43,7],[29,24,29,25],[29,26,30,26],[29,27,29,29],[29,30,30,30],[29,31,29,33],[28,22,28,25],[28,26,28,29],[28,30,28,33],[29,1,30,1],[29,2,30,2],[29,3,29,4],[29,5,30,5],[29,6,30,6],[29,7,30,7],[29,8,29,9],[29,10,29,11],[29,12,30,12],[29,13,29,17],[29,18,29,21],[29,22,30,22],[29,23,30,23],[26,1,26,11],[28,0,30,0],[28,1,28,7],[28,8,28,11],[28,12,28,21],[15,4,15,7],[2,1,2,11],[0,1,0,11],[22,4,22,7],[23,1,23,7],[4,0,6,0],[5,1,6,1],[5,2,6,2],[5,5,6,5],[5,6,6,6],[4,1,4,7],[5,7,6,7],[5,3,5,4],[5,23,6,23],[5,24,5,25],[4,8,4,11],[4,12,4,21],[5,12,6,12],[5,13,5,17],[5,18,5,21],[5,8,5,9],[5,10,5,11],[4,22,4,25],[5,22,6,22],[4,26,4,29],[4,30,4,33],[5,27,5,29],[5,31,5,33],[5,26,6,26],[5,30,6,30]]}
[null,"Nyilvántartó rekordok mintasorai"]
[]
[null,"Az alábbi táblázat azokat a mintasorokat tartalmazza, amelyeket jobb egérgombbal a nyilvántartó munkalapokra másolva bővíthetjük annak sorait. Ezt a munkalapot nem szabad megváltoztatni, bizonyos cellái azonban a beviteli funkciók ellátása miatt nem védettek. Emiatt célszerű a munkalapot rejtett, vagy \"very hidden\" állapotban tartani.\n\nNyilvántartási rekordok prototípusai\nAz \"A\" oszlopban található sortípus jelzés különböző szerepű nyilvántartó rekordokat azonosít:\n\"U\": univerzális prototípus projekt rekord, ebből származtatható az alábbi \"A\", \"T\" és \"B\" típus\n\"A\": szerződés azonosító rekord, a szerződés alapadatait tárolja\n\"T\": tervezett bevételi rekord, a szerződés egy adott időpontra tervezett bevételét rögzíti\n\"B\": bevételi rekord, a felette lévő \"T\" rekordban rögzített tervezett bevétel tényszerű megvalósulását rögzíti\n         (Amennyiben egy tervezett bevétel több részletben érkezik be, ezek további \"B\" rekordokban rögzíthetők.)\n\"S\": szumma, szerződés összegző rekord, a beérkezett bevételek és tartozások összege az adott szerződésre\n\"M\": mindösszesen, az adott szervezeti egység összes szerződésének bevételi és tartozási összege\n(Az \"A\" oszlopban valójában egy kétkarakteres szöveg áll, KARAKTER(160)&\"c\" formátumban, ahol a \"c\" karakter a fenti U, A, T, B, S vagy M betűk egyike.)"]
[]
[{"$f":"CHAR(160)&\"Rekord\"","v":" Rekord"},"Szerződés azonosító adatok",null,null,null,null,null,null,"Bevételek pénzforgalmi adatai",null,null,null,"Rezsi befizetések megvalósulása",null,null,null,null,null,null,null,null,null,"Önrész megelőlegezés a karról",null,null,null,"Tartozások összesen",null,null,null,"Ebből esedékes tartozás"]
[null,"Rövid név","Témavezető","Futamidő",null,"Rezsi halasztás","Téma- szám","Max. rezsi","Tervezett",null,"Tény",null,"Rezsi- szabály","Rezsi összegek megoszlása",null,null,null,null,"Rezsik átadási időpontja",null,null,null,"Előleg összege","Törlesztés határidő","Átadási időpontok",null,"szerződés \na karnak","kar",null,null,"szerződés \na karnak","kar"]
[null,null,null,"kezdete","vége",null,null,null,"összeg","időpont","összeg","időpont",null,"levonható","egyetemi","kari","intézeti","tanszéki","karra","intézetnek","tanszéknek","egyetemnek",null,null,"folyósítás","törlesztés",null,"intézetnek","tanszéknek","egyetemnek",null,"intézetnek","tanszéknek","egyetemnek"]
[{"$f":"CHAR(160)&\"U\"","v":" U"},"Pályázat 01","Gipsz Jakab","2013-01-01","2016-01-01","2015-01-01",12345,0.2,100000000,"2014-01-01",100000000,"2014-01-01","A14",{"$f":"K8*H8","v":20000000},{"$f":"K8*VLOOKUP(M8,INDIRECT(Paraméterek!$B$22),2,FALSE)","v":8000000},{"$f":"K8*VLOOKUP(M8,INDIRECT(Paraméterek!$B$22),3,FALSE)","v":1500000},{"$f":"MIN(K8*VLOOKUP(M8,INDIRECT(Paraméterek!$B$22),4,FALSE),N8-O8-P8)","v":7500000},{"$f":"N8-O8-P8-Q8","v":3000000},"2014-01-01","2014-01-01","2014-01-01","2014-01-01",15000000,"2014-01-01","2014-01-01","2014-01-01",{"$f":"IF(S8<>\"\",0,N8)+IF(AND(Y8<>\"\",Z8=\"\"),W8,0)","v":0},{"$f":"IF(T8<>\"\",0,Q8)","v":0},{"$f":"IF(U8<>\"\",0,R8)","v":0},{"$f":"IF(V8<>\"\",0,O8)","v":0},{"$f":"IF(OR(S8<>\"\",TODAY()<F8),0,N8)+IF(AND(Y8<>\"\",Z8=\"\",TODAY()>=X8),W8,0)","v":0},{"$f":"IF(OR(T8<>\"\",TODAY()<F8),0,IF(Q8<0,Q8,IF(S8<>\"\",Q8,0)))","v":0},{"$f":"IF(OR(U8<>\"\",TODAY()<F8),0,IF(S8<>\"\",R8,0))","v":0},{"$f":"IF(OR(V8<>\"\",TODAY()<F8),0,O8)","v":0}]
[{"$f":"CHAR(160)&\"A\"","v":" A"},"Pályázat 01","Gipsz Jakab","2013-01-01","2016-01-01",null,12345,0.05]
[{"$f":"CHAR(160)&\"T\"","v":" T"},{"$f":"OFFSET(B10,-1,0)","v":"Pályázat 01"},{"$f":"OFFSET(C10,-1,0)","v":"Gipsz Jakab"},"2013-01-01","2016-01-01","00:00:00",12345,0.05,100000000,"2013-01-01"]
[{"$f":"CHAR(160)&\"B\"","v":" B"},{"$f":"OFFSET(B11,-1,0)","v":"Pályázat 01"},"Gipsz Jakab","2013-01-01","2016-01-01","00:00:00",12345,0.05,null,null,60000000,"2013-06-30","A13",{"$f":"K11*H11","v":3000000},{"$f":"K11*IF(M11=\"\",0,VLOOKUP(M11,INDIRECT(Paraméterek!$B$22),2,FALSE))","v":6000000},{"$f":"K11*IF(M11=\"\",0,VLOOKUP(M11,INDIRECT(Paraméterek!$B$22),3,FALSE))","v":4200000},{"$f":"MIN(K11*IF(M11=\"\",0,VLOOKUP(M11,INDIRECT(Paraméterek!$B$22),4,FALSE)),N11-O11-P11)","v":-7200000},{"$f":"N11-O11-P11-Q11","v":0},"2014-01-01","2014-01-01","2014-01-01","2014-01-01",15000000,"2014-01-01","2014-01-01",null,{"$f":"IF(S11<>\"\",0,N11)+IF(AND(Y11<>\"\",Z11=\"\"),W11,0)","v":15000000},{"$f":"IF(T11<>\"\",0,Q11)","v":0},{"$f":"IF(U11<>\"\",0,R11)","v":0},{"$f":"IF(V11<>\"\",0,O11)","v":0},{"$f":"IF(OR(S11<>\"\",TODAY()<F11),0,N11)+IF(AND(Y11<>\"\",Z11=\"\",TODAY()>=X11),W11,0)","v":15000000},{"$f":"IF(OR(T11<>\"\",TODAY()<F11),0,IF(Q11<0,Q11,IF(S11<>\"\",Q11,0)))","v":0},{"$f":"IF(OR(U11<>\"\",TODAY()<F11),0,IF(S11<>\"\",R11,0))","v":0},{"$f":"IF(OR(V11<>\"\",TODAY()<F11),0,O11)","v":0}]
[{"$f":"CHAR(160)&\"B\"","v":" B"},"Pályázat 01","Gipsz Jakab","2013-01-01","2016-01-01","00:00:00",12345,0.05,null,null,40000000,"2013-12-31","A13",{"$f":"K12*H12","v":2000000},{"$f":"K12*IF(M12=\"\",0,VLOOKUP(M12,INDIRECT(Paraméterek!$B$22),2,FALSE))","v":4000000},{"$f":"K12*IF(M12=\"\",0,VLOOKUP(M12,INDIRECT(Paraméterek!$B$22),3,FALSE))","v":2800000.0000000005},{"$f":"MIN(K12*IF(M12=\"\",0,VLOOKUP(M12,INDIRECT(Paraméterek!$B$22),4,FALSE)),N12-O12-P12)","v":-4800000},{"$f":"N12-O12-P12-Q12","v":0},"2014-01-01","2014-01-01","2014-01-01","2014-01-01",5000000,"2014-01-01","2014-01-01",null,{"$f":"IF(S12<>\"\",0,N12)+IF(AND(Y12<>\"\",Z12=\"\"),W12,0)","v":5000000},{"$f":"IF(T12<>\"\",0,Q12)","v":0},{"$f":"IF(U12<>\"\",0,R12)","v":0},{"$f":"IF(V12<>\"\",0,O12)","v":0},{"$f":"IF(OR(S12<>\"\",TODAY()<F12),0,N12)+IF(AND(Y12<>\"\",Z12=\"\",TODAY()>=X12),W12,0)","v":5000000},{"$f":"IF(OR(T12<>\"\",TODAY()<F12),0,IF(Q12<0,Q12,IF(S12<>\"\",Q12,0)))","v":0},{"$f":"IF(OR(U12<>\"\",TODAY()<F12),0,IF(S12<>\"\",R12,0))","v":0},{"$f":"IF(OR(V12<>\"\",TODAY()<F12),0,O12)","v":0}]
[{"$f":"CHAR(160)&\"T\"","v":" T"},"Pályázat 01","Gipsz Jakab","2013-01-01","2016-01-01","00:00:00",12345,0.05,50000000,"2014-06-30"]
[{"$f":"CHAR(160)&\"B\"","v":" B"},"Pályázat 01","Gipsz Jakab","2013-01-01","2016-01-01","00:00:00",12345,0.05,null,null,30000000,"2014-07-01","A14",{"$f":"K14*H14","v":1500000},{"$f":"K14*IF(M14=\"\",0,VLOOKUP(M14,INDIRECT(Paraméterek!$B$22),2,FALSE))","v":2400000},{"$f":"K14*IF(M14=\"\",0,VLOOKUP(M14,INDIRECT(Paraméterek!$B$22),3,FALSE))","v":450000},{"$f":"MIN(K14*IF(M14=\"\",0,VLOOKUP(M14,INDIRECT(Paraméterek!$B$22),4,FALSE)),N14-O14-P14)","v":-1350000},{"$f":"N14-O14-P14-Q14","v":0},null,null,null,null,15000000,"2014-01-01","2014-01-01","2014-01-01",{"$f":"IF(S14<>\"\",0,N14)+IF(AND(Y14<>\"\",Z14=\"\"),W14,0)","v":1500000},{"$f":"IF(T14<>\"\",0,Q14)","v":-1350000},{"$f":"IF(U14<>\"\",0,R14)","v":0},{"$f":"IF(V14<>\"\",0,O14)","v":2400000},{"$f":"IF(OR(S14<>\"\",TODAY()<F14),0,N14)+IF(AND(Y14<>\"\",Z14=\"\",TODAY()>=X14),W14,0)","v":1500000},{"$f":"IF(OR(T14<>\"\",TODAY()<F14),0,IF(Q14<0,Q14,IF(S14<>\"\",Q14,0)))","v":-1350000},{"$f":"IF(OR(U14<>\"\",TODAY()<F14),0,IF(S14<>\"\",R14,0))","v":0},{"$f":"IF(OR(V14<>\"\",TODAY()<F14),0,O14)","v":2400000}]
[{"$f":"CHAR(160)&\"B\"","v":" B"},"Pályázat 01","Gipsz Jakab","2013-01-01","2016-01-01","00:00:00",12345,0.05,null,null,20000000,"2014-07-10","A14",{"$f":"K15*H15","v":1000000},{"$f":"K15*IF(M15=\"\",0,VLOOKUP(M15,INDIRECT(Paraméterek!$B$22),2,FALSE))","v":1600000},{"$f":"K15*IF(M15=\"\",0,VLOOKUP(M15,INDIRECT(Paraméterek!$B$22),3,FALSE))","v":300000},{"$f":"MIN(K15*IF(M15=\"\",0,VLOOKUP(M15,INDIRECT(Paraméterek!$B$22),4,FALSE)),N15-O15-P15)","v":-900000},{"$f":"N15-O15-P15-Q15","v":0},null,null,null,null,15000000,"2014-01-01","2014-01-01","2014-01-01",{"$f":"IF(S15<>\"\",0,N15)+IF(AND(Y15<>\"\",Z15=\"\"),W15,0)","v":1000000},{"$f":"IF(T15<>\"\",0,Q15)","v":-900000},{"$f":"IF(U15<>\"\",0,R15)","v":0},{"$f":"IF(V15<>\"\",0,O15)","v":1600000},{"$f":"IF(OR(S15<>\"\",TODAY()<F15),0,N15)+IF(AND(Y15<>\"\",Z15=\"\",TODAY()>=X15),W15,0)","v":1000000},{"$f":"IF(OR(T15<>\"\",TODAY()<F15),0,IF(Q15<0,Q15,IF(S15<>\"\",Q15,0)))","v":-900000},{"$f":"IF(OR(U15<>\"\",TODAY()<F15),0,IF(S15<>\"\",R15,0))","v":0},{"$f":"IF(OR(V15<>\"\",TODAY()<F15),0,O15)","v":1600000}]
[{"$f":"CHAR(160)&\"S\"","v":" S"},"Pályázat 01","Gipsz Jakab",null,"szerződés összesen:",null,null,null,{"$f":"SUM(I9:INDIRECT(ADDRESS(ROW()-1,COLUMN())))","v":150000000},null,{"$f":"SUM(K9:INDIRECT(ADDRESS(ROW()-1,COLUMN())))","v":150000000},null,null,{"$f":"SUM(N9:INDIRECT(ADDRESS(ROW()-1,COLUMN())))","v":7500000},{"$f":"SUM(O9:INDIRECT(ADDRESS(ROW()-1,COLUMN())))","v":14000000},{"$f":"SUM(P9:INDIRECT(ADDRESS(ROW()-1,COLUMN())))","v":7750000},{"$f":"SUM(Q9:INDIRECT(ADDRESS(ROW()-1,COLUMN())))","v":-14250000},{"$f":"SUM(R9:INDIRECT(ADDRESS(ROW()-1,COLUMN())))","v":0},null,null,null,null,{"$f":"SUM(W9:INDIRECT(ADDRESS(ROW()-1,COLUMN())))","v":50000000},null,null,null,{"$f":"SUM(AA9:INDIRECT(ADDRESS(ROW()-1,COLUMN())))","v":22500000},{"$f":"SUM(AB9:INDIRECT(ADDRESS(ROW()-1,COLUMN())))","v":-2250000},{"$f":"SUM(AC9:INDIRECT(ADDRESS(ROW()-1,COLUMN())))","v":0},{"$f":"SUM(AD9:INDIRECT(ADDRESS(ROW()-1,COLUMN())))","v":4000000},{"$f":"SUM(AE9:INDIRECT(ADDRESS(ROW()-1,COLUMN())))","v":22500000},{"$f":"SUM(AF9:INDIRECT(ADDRESS(ROW()-1,COLUMN())))","v":-2250000},{"$f":"SUM(AG9:INDIRECT(ADDRESS(ROW()-1,COLUMN())))","v":0},{"$f":"SUM(AH9:INDIRECT(ADDRESS(ROW()-1,COLUMN())))","v":4000000}]
[{"$f":"CHAR(160)&\"A\"","v":" A"},"Pályázat 02","Géz Géza","2012-01-01","2014-12-31","2013-01-01",67890,0.2]
[{"$f":"CHAR(160)&\"T\"","v":" T"},{"$f":"OFFSET(B18,-1,0)","v":"Pályázat 02"},{"$f":"OFFSET(C18,-1,0)","v":"Géz Géza"},"2012-01-01","2014-12-31","2013-01-01",67890,0.2,1000000,"2013-01-01"]
[{"$f":"CHAR(160)&\"B\"","v":" B"},{"$f":"OFFSET(B19,-1,0)","v":"Pályázat 02"},"Géz Géza","2012-01-01","2014-12-31","2013-01-01",67890,0.2,null,null,1000000,"2013-06-30","A13",{"$f":"K19*H19","v":200000},{"$f":"K19*IF(M19=\"\",0,VLOOKUP(M19,INDIRECT(Paraméterek!$B$22),2,FALSE))","v":100000},{"$f":"K19*IF(M19=\"\",0,VLOOKUP(M19,INDIRECT(Paraméterek!$B$22),3,FALSE))","v":70000},{"$f":"MIN(K19*IF(M19=\"\",0,VLOOKUP(M19,INDIRECT(Paraméterek!$B$22),4,FALSE)),N19-O19-P19)","v":0},{"$f":"N19-O19-P19-Q19","v":30000},"2014-01-01","2014-01-01","2014-01-01","2014-01-01",15000000,"2014-01-01","2014-01-01",null,{"$f":"IF(S19<>\"\",0,N19)+IF(AND(Y19<>\"\",Z19=\"\"),W19,0)","v":15000000},{"$f":"IF(T19<>\"\",0,Q19)","v":0},{"$f":"IF(U19<>\"\",0,R19)","v":0},{"$f":"IF(V19<>\"\",0,O19)","v":0},{"$f":"IF(OR(S19<>\"\",TODAY()<F19),0,N19)+IF(AND(Y19<>\"\",Z19=\"\",TODAY()>=X19),W19,0)","v":15000000},{"$f":"IF(OR(T19<>\"\",TODAY()<F19),0,IF(Q19<0,Q19,IF(S19<>\"\",Q19,0)))","v":0},{"$f":"IF(OR(U19<>\"\",TODAY()<F19),0,IF(S19<>\"\",R19,0))","v":0},{"$f":"IF(OR(V19<>\"\",TODAY()<F19),0,O19)","v":0}]
[{"$f":"CHAR(160)&\"T\"","v":" T"},"Pályázat 02","Géz Géza","2012-01-01","2014-12-31","2013-01-01",67890,0.2,5000000,"2014-06-30"]
[{"$f":"CHAR(160)&\"B\"","v":" B"},"Pályázat 02","Géz Géza","2012-01-01","2014-12-31","2013-01-01",67890,0.2,null,null,3000000,"2014-07-01","A14",{"$f":"K21*H21","v":600000},{"$f":"K21*IF(M21=\"\",0,VLOOKUP(M21,INDIRECT(Paraméterek!$B$22),2,FALSE))","v":240000},{"$f":"K21*IF(M21=\"\",0,VLOOKUP(M21,INDIRECT(Paraméterek!$B$22),3,FALSE))","v":45000},{"$f":"MIN(K21*IF(M21=\"\",0,VLOOKUP(M21,INDIRECT(Paraméterek!$B$22),4,FALSE)),N21-O21-P21)","v":225000},{"$f":"N21-O21-P21-Q21","v":90000},null,null,null,null,15000000,"2014-01-01","2014-01-01",null,{"$f":"IF(S21<>\"\",0,N21)+IF(AND(Y21<>\"\",Z21=\"\"),W21,0)","v":15600000},{"$f":"IF(T21<>\"\",0,Q21)","v":225000},{"$f":"IF(U21<>\"\",0,R21)","v":90000},{"$f":"IF(V21<>\"\",0,O21)","v":240000},{"$f":"IF(OR(S21<>\"\",TODAY()<F21),0,N21)+IF(AND(Y21<>\"\",Z21=\"\",TODAY()>=X21),W21,0)","v":15600000},{"$f":"IF(OR(T21<>\"\",TODAY()<F21),0,IF(Q21<0,Q21,IF(S21<>\"\",Q21,0)))","v":0},{"$f":"IF(OR(U21<>\"\",TODAY()<F21),0,IF(S21<>\"\",R21,0))","v":0},{"$f":"IF(OR(V21<>\"\",TODAY()<F21),0,O21)","v":240000}]
[{"$f":"CHAR(160)&\"B\"","v":" B"},"Pályázat 02","Géz Géza","2012-01-01","2014-12-31","2013-01-01",67890,0.2,null,null,2000000,"2014-07-10","A14",{"$f":"K22*H22","v":400000},{"$f":"K22*IF(M22=\"\",0,VLOOKUP(M22,INDIRECT(Paraméterek!$B$22),2,FALSE))","v":160000},{"$f":"K22*IF(M22=\"\",0,VLOOKUP(M22,INDIRECT(Paraméterek!$B$22),3,FALSE))","v":30000},{"$f":"MIN(K22*IF(M22=\"\",0,VLOOKUP(M22,INDIRECT(Paraméterek!$B$22),4,FALSE)),N22-O22-P22)","v":150000},{"$f":"N22-O22-P22-Q22","v":60000},null,null,null,null,15000000,"2014-01-01","2014-01-01","2014-01-01",{"$f":"IF(S22<>\"\",0,N22)+IF(AND(Y22<>\"\",Z22=\"\"),W22,0)","v":400000},{"$f":"IF(T22<>\"\",0,Q22)","v":150000},{"$f":"IF(U22<>\"\",0,R22)","v":60000},{"$f":"IF(V22<>\"\",0,O22)","v":160000},{"$f":"IF(OR(S22<>\"\",TODAY()<F22),0,N22)+IF(AND(Y22<>\"\",Z22=\"\",TODAY()>=X22),W22,0)","v":400000},{"$f":"IF(OR(T22<>\"\",TODAY()<F22),0,IF(Q22<0,Q22,IF(S22<>\"\",Q22,0)))","v":0},{"$f":"IF(OR(U22<>\"\",TODAY()<F22),0,IF(S22<>\"\",R22,0))","v":0},{"$f":"IF(OR(V22<>\"\",TODAY()<F22),0,O22)","v":160000}]
[{"$f":"CHAR(160)&\"S\"","v":" S"},"Pályázat 02","Géz Géza",null,"szerződés összesen:",null,null,null,{"$f":"SUM(I17:INDIRECT(ADDRESS(ROW()-1,COLUMN())))","v":6000000},null,{"$f":"SUM(K17:INDIRECT(ADDRESS(ROW()-1,COLUMN())))","v":6000000},null,null,{"$f":"SUM(N17:INDIRECT(ADDRESS(ROW()-1,COLUMN())))","v":1200000},{"$f":"SUM(O17:INDIRECT(ADDRESS(ROW()-1,COLUMN())))","v":500000},{"$f":"SUM(P17:INDIRECT(ADDRESS(ROW()-1,COLUMN())))","v":145000},{"$f":"SUM(Q17:INDIRECT(ADDRESS(ROW()-1,COLUMN())))","v":375000},{"$f":"SUM(R17:INDIRECT(ADDRESS(ROW()-1,COLUMN())))","v":180000},null,null,null,null,{"$f":"SUM(W17:INDIRECT(ADDRESS(ROW()-1,COLUMN())))","v":45000000},null,null,null,{"$f":"SUM(AA17:INDIRECT(ADDRESS(ROW()-1,COLUMN())))","v":31000000},{"$f":"SUM(AB17:INDIRECT(ADDRESS(ROW()-1,COLUMN())))","v":375000},{"$f":"SUM(AC17:INDIRECT(ADDRESS(ROW()-1,COLUMN())))","v":150000},{"$f":"SUM(AD17:INDIRECT(ADDRESS(ROW()-1,COLUMN())))","v":400000},{"$f":"SUM(AE17:INDIRECT(ADDRESS(ROW()-1,COLUMN())))","v":31000000},{"$f":"SUM(AF17:INDIRECT(ADDRESS(ROW()-1,COLUMN())))","v":0},{"$f":"SUM(AG17:INDIRECT(ADDRESS(ROW()-1,COLUMN())))","v":0},{"$f":"SUM(AH17:INDIRECT(ADDRESS(ROW()-1,COLUMN())))","v":400000}]
[{"$f":"CHAR(160)&\"M\"","v":" M"},"Szervezeti egység összesen:",null,null,null,null,null,null,{"$f":"SUMIF($A7:INDIRECT(\"$A\"&ROW()-1),CHAR(160)&\"S\",I7:INDIRECT(ADDRESS(ROW()-1,COLUMN())))","v":156000000},null,{"$f":"SUMIF($A7:INDIRECT(\"$A\"&ROW()-1),CHAR(160)&\"S\",K7:INDIRECT(ADDRESS(ROW()-1,COLUMN())))","v":156000000},null,null,{"$f":"SUMIF($A7:INDIRECT(\"$A\"&ROW()-1),CHAR(160)&\"S\",N7:INDIRECT(ADDRESS(ROW()-1,COLUMN())))","v":8700000},{"$f":"SUMIF($A7:INDIRECT(\"$A\"&ROW()-1),CHAR(160)&\"S\",O7:INDIRECT(ADDRESS(ROW()-1,COLUMN())))","v":14500000},{"$f":"SUMIF($A7:INDIRECT(\"$A\"&ROW()-1),CHAR(160)&\"S\",P7:INDIRECT(ADDRESS(ROW()-1,COLUMN())))","v":7895000},{"$f":"SUMIF($A7:INDIRECT(\"$A\"&ROW()-1),CHAR(160)&\"S\",Q7:INDIRECT(ADDRESS(ROW()-1,COLUMN())))","v":-13875000},{"$f":"SUMIF($A7:INDIRECT(\"$A\"&ROW()-1),CHAR(160)&\"S\",R7:INDIRECT(ADDRESS(ROW()-1,COLUMN())))","v":180000},null,null,null,null,{"$f":"SUMIF($A7:INDIRECT(\"$A\"&ROW()-1),CHAR(160)&\"S\",W7:INDIRECT(ADDRESS(ROW()-1,COLUMN())))","v":95000000},null,null,null,{"$f":"SUMIF($A7:INDIRECT(\"$A\"&ROW()-1),CHAR(160)&\"S\",AA7:INDIRECT(ADDRESS(ROW()-1,COLUMN())))","v":53500000},{"$f":"SUMIF($A7:INDIRECT(\"$A\"&ROW()-1),CHAR(160)&\"S\",AB7:INDIRECT(ADDRESS(ROW()-1,COLUMN())))","v":-1875000},{"$f":"SUMIF($A7:INDIRECT(\"$A\"&ROW()-1),CHAR(160)&\"S\",AC7:INDIRECT(ADDRESS(ROW()-1,COLUMN())))","v":150000},{"$f":"SUMIF($A7:INDIRECT(\"$A\"&ROW()-1),CHAR(160)&\"S\",AD7:INDIRECT(ADDRESS(ROW()-1,COLUMN())))","v":4400000},{"$f":"SUMIF($A7:INDIRECT(\"$A\"&ROW()-1),CHAR(160)&\"S\",AE7:INDIRECT(ADDRESS(ROW()-1,COLUMN())))","v":53500000},{"$f":"SUMIF($A7:INDIRECT(\"$A\"&ROW()-1),CHAR(160)&\"S\",AF7:INDIRECT(ADDRESS(ROW()-1,COLUMN())))","v":-2250000},{"$f":"SUMIF($A7:INDIRECT(\"$A\"&ROW()-1),CHAR(160)&\"S\",AG7:INDIRECT(ADDRESS(ROW()-1,COLUMN())))","v":0},{"$f":"SUMIF($A7:INDIRECT(\"$A\"&ROW()-1),CHAR(160)&\"S\",AH7:INDIRECT(ADDRESS(ROW()-1,COLUMN())))","v":4400000}]
[]
[]
[null,"Táblázat beillesztő sablon (Excel adatérvényesítéssel)"]
[]
[" Rekord","Szerződés azonosító adatok",null,null,null,null,null,null,"Bevételek pénzforgalmi adatai",null,null,null,"Rezsi befizetések megvalósulása",null,null,null,null,null,null,null,null,null,"Önrész megelőlegezés a karról",null,null,null,"Tartozások összesen",null,null,null,"Ebből esedékes tartozás"]
[null,"Rövid név","Témavezető","Futamidő",null,"Rezsi halasztás","Téma- szám","Max. rezsi","Tervezett",null,"Tény",null,"Rezsi- szabály","Rezsi összegek megoszlása",null,null,null,null,"Rezsik átadási időpontja",null,null,null,"Előleg összege","Törlesztés határidő","Átadási időpontok",null,"szerződés \na karnak","kar",null,null,"szerződés \na karnak","kar"]
[null,null,null,"kezdete","vége",null,null,null,"összeg","időpont","összeg","időpont",null,"levonható","egyetemi","kari","intézeti","tanszéki","karra","intézetnek","tanszéknek","egyetemnek",null,null,"folyósítás","törlesztés",null,"intézetnek","tanszéknek","egyetemnek",null,"intézetnek","tanszéknek","egyetemnek"]
[" A"]
[" T",{"$f":"OFFSET(B33,-1,0)","v":0},{"$f":"OFFSET(C33,-1,0)","v":0},"00:00:00","00:00:00","00:00:00",0,0]
[" B",{"$f":"OFFSET(B34,-1,0)","v":0},0,"00:00:00","00:00:00","00:00:00",0,0,null,null,null,null,null,{"$f":"ROUND(K34*H34,0)","v":0},{"$f":"ROUND(K34*IF(M34=\"\",0,VLOOKUP(M34,INDIRECT(Paraméterek!$B$22),2,FALSE)),0)","v":0},{"$f":"ROUND(K34*IF(M34=\"\",0,VLOOKUP(M34,INDIRECT(Paraméterek!$B$22),3,FALSE)),0)","v":0},{"$f":"ROUND(MIN(K34*IF(M34=\"\",0,VLOOKUP(M34,INDIRECT(Paraméterek!$B$22),4,FALSE)),N34-O34-P34),0)","v":0},{"$f":"N34-O34-P34-Q34","v":0},null,null,null,null,null,null,null,null,{"$f":"IF(S34=\"\",N34,0)+IF(AND(Z34=\"\",Y34<>\"\"),W34,0)","v":0},{"$f":"IF(T34=\"\",Q34,0)","v":0},{"$f":"IF(U34=\"\",R34,0)","v":0},{"$f":"IF(V34=\"\",O34,0)","v":0},{"$f":"IF(AND(S34=\"\",TODAY()>=F34),N34,0)+IF(AND(Z34=\"\",Y34<>\"\",TODAY()>=X34),W34,0)","v":0},{"$f":"IF(OR(AND(Q34>0,T34=\"\",S34<>\"\"),AND(Q34<0,T34=\"\",TODAY()>=F34)),Q34,0)","v":0},{"$f":"IF(AND(U34=\"\",S34<>\"\"),R34,0)","v":0},{"$f":"IF(AND(V34=\"\",TODAY()>=F34),O34,0)","v":0}]
[" S",0,0,null,"szerződés összesen:",null,null,null,{"$f":"SUM(I32:INDIRECT(ADDRESS(ROW()-1,COLUMN())))","v":0},null,{"$f":"SUM(K32:INDIRECT(ADDRESS(ROW()-1,COLUMN())))","v":0},null,null,{"$f":"SUM(N32:INDIRECT(ADDRESS(ROW()-1,COLUMN())))","v":0},{"$f":"SUM(O32:INDIRECT(ADDRESS(ROW()-1,COLUMN())))","v":0},{"$f":"SUM(P32:INDIRECT(ADDRESS(ROW()-1,COLUMN())))","v":0},{"$f":"SUM(Q32:INDIRECT(ADDRESS(ROW()-1,COLUMN())))","v":0},{"$f":"SUM(R32:INDIRECT(ADDRESS(ROW()-1,COLUMN())))","v":0},null,null,null,null,{"$f":"SUM(W32:INDIRECT(ADDRESS(ROW()-1,COLUMN())))","v":0},null,null,null,{"$f":"SUM(AA32:INDIRECT(ADDRESS(ROW()-1,COLUMN())))","v":0},{"$f":"SUM(AB32:INDIRECT(ADDRESS(ROW()-1,COLUMN())))","v":0},{"$f":"SUM(AC32:INDIRECT(ADDRESS(ROW()-1,COLUMN())))","v":0},{"$f":"SUM(AD32:INDIRECT(ADDRESS(ROW()-1,COLUMN())))","v":0},{"$f":"SUM(AE32:INDIRECT(ADDRESS(ROW()-1,COLUMN())))","v":0},{"$f":"SUM(AF32:INDIRECT(ADDRESS(ROW()-1,COLUMN())))","v":0},{"$f":"SUM(AG32:INDIRECT(ADDRESS(ROW()-1,COLUMN())))","v":0},{"$f":"SUM(AH32:INDIRECT(ADDRESS(ROW()-1,COLUMN())))","v":0}]
[" M","Szervezeti egység összesen:",null,null,null,null,null,null,{"$f":"SUMIF($A31:INDIRECT(\"$A\"&ROW()-1),CHAR(160)&\"S\",I31:INDIRECT(ADDRESS(ROW()-1,COLUMN())))","v":0},null,{"$f":"SUMIF($A31:INDIRECT(\"$A\"&ROW()-1),CHAR(160)&\"S\",K31:INDIRECT(ADDRESS(ROW()-1,COLUMN())))","v":0},null,null,{"$f":"SUMIF($A31:INDIRECT(\"$A\"&ROW()-1),CHAR(160)&\"S\",N31:INDIRECT(ADDRESS(ROW()-1,COLUMN())))","v":0},{"$f":"SUMIF($A31:INDIRECT(\"$A\"&ROW()-1),CHAR(160)&\"S\",O31:INDIRECT(ADDRESS(ROW()-1,COLUMN())))","v":0},{"$f":"SUMIF($A31:INDIRECT(\"$A\"&ROW()-1),CHAR(160)&\"S\",P31:INDIRECT(ADDRESS(ROW()-1,COLUMN())))","v":0},{"$f":"SUMIF($A31:INDIRECT(\"$A\"&ROW()-1),CHAR(160)&\"S\",Q31:INDIRECT(ADDRESS(ROW()-1,COLUMN())))","v":0},{"$f":"SUMIF($A31:INDIRECT(\"$A\"&ROW()-1),CHAR(160)&\"S\",R31:INDIRECT(ADDRESS(ROW()-1,COLUMN())))","v":0},null,null,null,null,{"$f":"SUMIF($A31:INDIRECT(\"$A\"&ROW()-1),CHAR(160)&\"S\",W31:INDIRECT(ADDRESS(ROW()-1,COLUMN())))","v":0},null,null,null,{"$f":"SUMIF($A31:INDIRECT(\"$A\"&ROW()-1),CHAR(160)&\"S\",AA31:INDIRECT(ADDRESS(ROW()-1,COLUMN())))","v":0},{"$f":"SUMIF($A31:INDIRECT(\"$A\"&ROW()-1),CHAR(160)&\"S\",AB31:INDIRECT(ADDRESS(ROW()-1,COLUMN())))","v":0},{"$f":"SUMIF($A31:INDIRECT(\"$A\"&ROW()-1),CHAR(160)&\"S\",AC31:INDIRECT(ADDRESS(ROW()-1,COLUMN())))","v":0},{"$f":"SUMIF($A31:INDIRECT(\"$A\"&ROW()-1),CHAR(160)&\"S\",AD31:INDIRECT(ADDRESS(ROW()-1,COLUMN())))","v":0},{"$f":"SUMIF($A31:INDIRECT(\"$A\"&ROW()-1),CHAR(160)&\"S\",AE31:INDIRECT(ADDRESS(ROW()-1,COLUMN())))","v":0},{"$f":"SUMIF($A31:INDIRECT(\"$A\"&ROW()-1),CHAR(160)&\"S\",AF31:INDIRECT(ADDRESS(ROW()-1,COLUMN())))","v":0},{"$f":"SUMIF($A31:INDIRECT(\"$A\"&ROW()-1),CHAR(160)&\"S\",AG31:INDIRECT(ADDRESS(ROW()-1,COLUMN())))","v":0},{"$f":"SUMIF($A31:INDIRECT(\"$A\"&ROW()-1),CHAR(160)&\"S\",AH31:INDIRECT(ADDRESS(ROW()-1,COLUMN())))","v":0}]
[]
[]
[null,"Szerződés beillesztő sablon (VBA dátumérvényesítéssel)"]
[]
[" A"]
[" T",{"$f":"OFFSET(B42,-1,0)","v":0},{"$f":"OFFSET(C42,-1,0)","v":0},"00:00:00","00:00:00","00:00:00",0,0]
[" B",{"$f":"OFFSET(B43,-1,0)","v":0},0,"00:00:00","00:00:00","00:00:00",0,0,null,null,null,null,null,{"$f":"ROUND(K43*H43,0)","v":0},{"$f":"ROUND(K43*IF(M43=\"\",0,VLOOKUP(M43,INDIRECT(Paraméterek!$B$22),2,FALSE)),0)","v":0},{"$f":"ROUND(K43*IF(M43=\"\",0,VLOOKUP(M43,INDIRECT(Paraméterek!$B$22),3,FALSE)),0)","v":0},{"$f":"ROUND(MIN(K43*IF(M43=\"\",0,VLOOKUP(M43,INDIRECT(Paraméterek!$B$22),4,FALSE)),N43-O43-P43),0)","v":0},{"$f":"N43-O43-P43-Q43","v":0},null,null,null,null,null,null,null,null,{"$f":"IF(S43=\"\",N43,0)+IF(AND(Z43=\"\",Y43<>\"\"),W43,0)","v":0},{"$f":"IF(T43=\"\",Q43,0)","v":0},{"$f":"IF(U43=\"\",R43,0)","v":0},{"$f":"IF(V43=\"\",O43,0)","v":0},{"$f":"IF(AND(S43=\"\",TODAY()>=F43),N43,0)+IF(AND(Z43=\"\",Y43<>\"\",TODAY()>=X43),W43,0)","v":0},{"$f":"IF(OR(AND(Q43>0,T43=\"\",S43<>\"\"),AND(Q43<0,T43=\"\",TODAY()>=F43)),Q43,0)","v":0},{"$f":"IF(AND(U43=\"\",S43<>\"\"),R43,0)","v":0},{"$f":"IF(AND(V43=\"\",TODAY()>=F43),O43,0)","v":0}]
[" S",0,0,null,"szerződés összesen:",null,null,null,{"$f":"SUM(I41:INDIRECT(ADDRESS(ROW()-1,COLUMN())))","v":0},null,{"$f":"SUM(K41:INDIRECT(ADDRESS(ROW()-1,COLUMN())))","v":0},null,null,{"$f":"SUM(N41:INDIRECT(ADDRESS(ROW()-1,COLUMN())))","v":0},{"$f":"SUM(O41:INDIRECT(ADDRESS(ROW()-1,COLUMN())))","v":0},{"$f":"SUM(P41:INDIRECT(ADDRESS(ROW()-1,COLUMN())))","v":0},{"$f":"SUM(Q41:INDIRECT(ADDRESS(ROW()-1,COLUMN())))","v":0},{"$f":"SUM(R41:INDIRECT(ADDRESS(ROW()-1,COLUMN())))","v":0},null,null,null,null,{"$f":"SUM(W41:INDIRECT(ADDRESS(ROW()-1,COLUMN())))","v":0},null,null,null,{"$f":"SUM(AA41:INDIRECT(ADDRESS(ROW()-1,COLUMN())))","v":0},{"$f":"SUM(AB41:INDIRECT(ADDRESS(ROW()-1,COLUMN())))","v":0},{"$f":"SUM(AC41:INDIRECT(ADDRESS(ROW()-1,COLUMN())))","v":0},{"$f":"SUM(AD41:INDIRECT(ADDRESS(ROW()-1,COLUMN())))","v":0},{"$f":"SUM(AE41:INDIRECT(ADDRESS(ROW()-1,COLUMN())))","v":0},{"$f":"SUM(AF41:INDIRECT(ADDRESS(ROW()-1,COLUMN())))","v":0},{"$f":"SUM(AG41:INDIRECT(ADDRESS(ROW()-1,COLUMN())))","v":0},{"$f":"SUM(AH41:INDIRECT(ADDRESS(ROW()-1,COLUMN())))","v":0}]
[]
[]
[null,"Tervezett bevételi rekord beillesztő sablon (VBA dátumérvényesítéssel)"]
[]
[" T",{"$f":"OFFSET(B49,-1,0)","v":0},{"$f":"OFFSET(C49,-1,0)","v":0},"00:00:00","00:00:00","00:00:00",0,0]
[" B",{"$f":"OFFSET(B50,-1,0)","v":0},0,"00:00:00","00:00:00","00:00:00",0,0,null,null,null,null,null,{"$f":"ROUND(K50*H50,0)","v":0},{"$f":"ROUND(K50*IF(M50=\"\",0,VLOOKUP(M50,INDIRECT(Paraméterek!$B$22),2,FALSE)),0)","v":0},{"$f":"ROUND(K50*IF(M50=\"\",0,VLOOKUP(M50,INDIRECT(Paraméterek!$B$22),3,FALSE)),0)","v":0},{"$f":"ROUND(MIN(K50*IF(M50=\"\",0,VLOOKUP(M50,INDIRECT(Paraméterek!$B$22),4,FALSE)),N50-O50-P50),0)","v":0},{"$f":"N50-O50-P50-Q50","v":0},null,null,null,null,null,null,null,null,{"$f":"IF(S50=\"\",N50,0)+IF(AND(Z50=\"\",Y50<>\"\"),W50,0)","v":0},{"$f":"IF(T50=\"\",Q50,0)","v":0},{"$f":"IF(U50=\"\",R50,0)","v":0},{"$f":"IF(V50=\"\",O50,0)","v":0},{"$f":"IF(AND(S50=\"\",TODAY()>=F50),N50,0)+IF(AND(Z50=\"\",Y50<>\"\",TODAY()>=X50),W50,0)","v":0},{"$f":"IF(OR(AND(Q50>0,T50=\"\",S50<>\"\"),AND(Q50<0,T50=\"\",TODAY()>=F50)),Q50,0)","v":0},{"$f":"IF(AND(U50=\"\",S50<>\"\"),R50,0)","v":0},{"$f":"IF(AND(V50=\"\",TODAY()>=F50),O50,0)","v":0}]
[]
[]
[null,"Bevételi rekord beillesztő sablon (VBA dátumérvényesítéssel)"]
[]
[" B",{"$f":"OFFSET(B55,-1,0)","v":0},0,"00:00:00","00:00:00","00:00:00",0,0,null,null,null,null,null,{"$f":"ROUND(K55*H55,0)","v":0},{"$f":"ROUND(K55*IF(M55=\"\",0,VLOOKUP(M55,INDIRECT(Paraméterek!$B$22),2,FALSE)),0)","v":0},{"$f":"ROUND(K55*IF(M55=\"\",0,VLOOKUP(M55,INDIRECT(Paraméterek!$B$22),3,FALSE)),0)","v":0},{"$f":"ROUND(MIN(K55*IF(M55=\"\",0,VLOOKUP(M55,INDIRECT(Paraméterek!$B$22),4,FALSE)),N55-O55-P55),0)","v":0},{"$f":"N55-O55-P55-Q55","v":0},null,null,null,null,null,null,null,null,{"$f":"IF(S55=\"\",N55,0)+IF(AND(Z55=\"\",Y55<>\"\"),W55,0)","v":0},{"$f":"IF(T55=\"\",Q55,0)","v":0},{"$f":"IF(U55=\"\",R55,0)","v":0},{"$f":"IF(V55=\"\",O55,0)","v":0},{"$f":"IF(AND(S55=\"\",TODAY()>=F55),N55,0)+IF(AND(Z55=\"\",Y55<>\"\",TODAY()>=X55),W55,0)","v":0},{"$f":"IF(OR(AND(Q55>0,T55=\"\",S55<>\"\"),AND(Q55<0,T55=\"\",TODAY()>=F55)),Q55,0)","v":0},{"$f":"IF(AND(U55=\"\",S55<>\"\"),R55,0)","v":0},{"$f":"IF(AND(V55=\"\",TODAY()>=F55),O55,0)","v":0}]

{"sheet":"Mintalap","index":4,"n_rows":12,"n_cols":34,"rows_kept":12,"cut":false,"hidden":true,"merged":[[10,4,10,7],[11,1,11,7],[4,30,4,33],[5,1,6,1],[5,2,6,2],[5,3,5,4],[5,5,6,5],[5,6,6,6],[5,7,6,7],[5,8,5,9],[5,10,5,11],[5,12,6,12],[4,26,4,29],[5,24,5,25],[5,26,6,26],[5,27,5,29],[4,0,6,0],[4,1,4,7],[4,8,4,11],[4,12,4,21],[4,22,4,25],[5,13,5,17],[5,18,5,21],[5,22,6,22],[5,23,6,23],[0,1,0,7],[1,2,1,7],[2,2,2,7],[5,30,6,30],[5,31,5,33]]}
[null,"Szervezeti egység rezsi nyilvántartása"]
[null,"Az egység neve:"]
[null,"MGR kódja:"]
[]
[" Rekord","Szerződés azonosító adatok",null,null,null,null,null,null,"Bevételek pénzforgalmi adatai",null,null,null,"Rezsi befizetések megvalósulása",null,null,null,null,null,null,null,null,null,"Önrész megelőlegezés a karról",null,null,null,"Tartozások összesen",null,null,null,"Ebből esedékes tartozás"]
[null,"Rövid név","Témavezető","Futamidő",null,"Rezsi halasztás","Téma- szám","Max. rezsi","Tervezett",null,"Tény",null,"Rezsi- szabály","Rezsi összegek megoszlása",null,null,null,null,"Rezsik átadási időpontja",null,null,null,"Előleg összege","Törlesztés határidő","Átadási időpontok",null,"szerződés \na karnak","kar",null,null,"szerződés \na karnak","kar"]
[null,null,null,"kezdete","vége",null,null,null,"összeg","időpont","összeg","időpont",null,"levonható","egyetemi","kari","intézeti","tanszéki","karra","intézetnek","tanszéknek","egyetemnek",null,null,"folyósítás","törlesztés",null,"intézetnek","tanszéknek","egyetemnek",null,"intézetnek","tanszéknek","egyetemnek"]
[" A"]
[" T",{"$f":"OFFSET(B9,-1,0)","v":0},{"$f":"OFFSET(C9,-1,0)","v":0},"00:00:00","00:00:00","00:00:00",0,0]
[" B",{"$f":"OFFSET(B10,-1,0)","v":0},0,"00:00:00","00:00:00","00:00:00",0,0,null,null,null,null,null,{"$f":"ROUND(K10*H10,0)","v":0},{"$f":"ROUND(K10*IF(M10=\"\",0,VLOOKUP(M10,INDIRECT(Paraméterek!$B$22),2,FALSE)),0)","v":0},{"$f":"ROUND(K10*IF(M10=\"\",0,VLOOKUP(M10,INDIRECT(Paraméterek!$B$22),3,FALSE)),0)","v":0},{"$f":"ROUND(MIN(K10*IF(M10=\"\",0,VLOOKUP(M10,INDIRECT(Paraméterek!$B$22),4,FALSE)),N10-O10-P10),0)","v":0},{"$f":"N10-O10-P10-Q10","v":0},null,null,null,null,null,null,null,null,{"$f":"IF(S10=\"\",N10,0)+IF(AND(Z10=\"\",Y10<>\"\"),W10,0)","v":0},{"$f":"IF(T10=\"\",Q10,0)","v":0},{"$f":"IF(U10=\"\",R10,0)","v":0},{"$f":"IF(V10=\"\",O10,0)","v":0},{"$f":"IF(AND(S10=\"\",TODAY()>=F10),N10,0)+IF(AND(Z10=\"\",Y10<>\"\",TODAY()>=X10),W10,0)","v":0},{"$f":"IF(OR(AND(Q10>0,T10=\"\",S10<>\"\"),AND(Q10<0,T10=\"\",TODAY()>=F10)),Q10,0)","v":0},{"$f":"IF(AND(U10=\"\",S10<>\"\"),R10,0)","v":0},{"$f":"IF(AND(V10=\"\",TODAY()>=F10),O10,0)","v":0}]
[" S",0,0,null,"szerződés összesen:",null,null,null,{"$f":"SUM(I8:INDIRECT(ADDRESS(ROW()-1,COLUMN())))","v":0},null,{"$f":"SUM(K8:INDIRECT(ADDRESS(ROW()-1,COLUMN())))","v":0},null,null,{"$f":"SUM(N8:INDIRECT(ADDRESS(ROW()-1,COLUMN())))","v":0},{"$f":"SUM(O8:INDIRECT(ADDRESS(ROW()-1,COLUMN())))","v":0},{"$f":"SUM(P8:INDIRECT(ADDRESS(ROW()-1,COLUMN())))","v":0},{"$f":"SUM(Q8:INDIRECT(ADDRESS(ROW()-1,COLUMN())))","v":0},{"$f":"SUM(R8:INDIRECT(ADDRESS(ROW()-1,COLUMN())))","v":0},null,null,null,null,{"$f":"SUM(W8:INDIRECT(ADDRESS(ROW()-1,COLUMN())))","v":0},null,null,null,{"$f":"SUM(AA8:INDIRECT(ADDRESS(ROW()-1,COLUMN())))","v":0},{"$f":"SUM(AB8:INDIRECT(ADDRESS(ROW()-1,COLUMN())))","v":0},{"$f":"SUM(AC8:INDIRECT(ADDRESS(ROW()-1,COLUMN())))","v":0},{"$f":"SUM(AD8:INDIRECT(ADDRESS(ROW()-1,COLUMN())))","v":0},{"$f":"SUM(AE8:INDIRECT(ADDRESS(ROW()-1,COLUMN())))","v":0},{"$f":"SUM(AF8:INDIRECT(ADDRESS(ROW()-1,COLUMN())))","v":0},{"$f":"SUM(AG8:INDIRECT(ADDRESS(ROW()-1,COLUMN())))","v":0},{"$f":"SUM(AH8:INDIRECT(ADDRESS(ROW()-1,COLUMN())))","v":0}]
[" M","Szervezeti egység összesen:",null,null,null,null,null,null,{"$f":"SUMIF($A7:INDIRECT(\"$A\"&ROW()-1),CHAR(160)&\"S\",I7:INDIRECT(ADDRESS(ROW()-1,COLUMN())))","v":0},null,{"$f":"SUMIF($A7:INDIRECT(\"$A\"&ROW()-1),CHAR(160)&\"S\",K7:INDIRECT(ADDRESS(ROW()-1,COLUMN())))","v":0},null,null,{"$f":"SUMIF($A7:INDIRECT(\"$A\"&ROW()-1),CHAR(160)&\"S\",N7:INDIRECT(ADDRESS(ROW()-1,COLUMN())))","v":0},{"$f":"SUMIF($A7:INDIRECT(\"$A\"&ROW()-1),CHAR(160)&\"S\",O7:INDIRECT(ADDRESS(ROW()-1,COLUMN())))","v":0},{"$f":"SUMIF($A7:INDIRECT(\"$A\"&ROW()-1),CHAR(160)&\"S\",P7:INDIRECT(ADDRESS(ROW()-1,COLUMN())))","v":0},{"$f":"SUMIF($A7:INDIRECT(\"$A\"&ROW()-1),CHAR(160)&\"S\",Q7:INDIRECT(ADDRESS(ROW()-1,COLUMN())))","v":0},{"$f":"SUMIF($A7:INDIRECT(\"$A\"&ROW()-1),CHAR(160)&\"S\",R7:INDIRECT(ADDRESS(ROW()-1,COLUMN())))","v":0},null,null,null,null,{"$f":"SUMIF($A7:INDIRECT(\"$A\"&ROW()-1),CHAR(160)&\"S\",W7:INDIRECT(ADDRESS(ROW()-1,COLUMN())))","v":0},null,null,null,{"$f":"SUMIF($A7:INDIRECT(\"$A\"&ROW()-1),CHAR(160)&\"S\",AA7:INDIRECT(ADDRESS(ROW()-1,COLUMN())))","v":0},{"$f":"SUMIF($A7:INDIRECT(\"$A\"&ROW()-1),CHAR(160)&\"S\",AB7:INDIRECT(ADDRESS(ROW()-1,COLUMN())))","v":0},{"$f":"SUMIF($A7:INDIRECT(\"$A\"&ROW()-1),CHAR(160)&\"S\",AC7:INDIRECT(ADDRESS(ROW()-1,COLUMN())))","v":0},{"$f":"SUMIF($A7:INDIRECT(\"$A\"&ROW()-1),CHAR(160)&\"S\",AD7:INDIRECT(ADDRESS(ROW()-1,COLUMN())))","v":0},{"$f":"SUMIF($A7:INDIRECT(\"$A\"&ROW()-1),CHAR(160)&\"S\",AE7:INDIRECT(ADDRESS(ROW()-1,COLUMN())))","v":0},{"$f":"SUMIF($A7:INDIRECT(\"$A\"&ROW()-1),CHAR(160)&\"S\",AF7:INDIRECT(ADDRESS(ROW()-1,COLUMN())))","v":0},{"$f":"SUMIF($A7:INDIRECT(\"$A\"&ROW()-1),CHAR(160)&\"S\",AG7:INDIRECT(ADDRESS(ROW()-1,COLUMN())))","v":0},{"$f":"SUMIF($A7:INDIRECT(\"$A\"&ROW()-1),CHAR(160)&\"S\",AH7:INDIRECT(ADDRESS(ROW()-1,COLUMN())))","v":0}]

{"sheet":"MintaÖsszSor","index":5,"n_rows":44,"n_cols":24,"rows_kept":44,"cut":false,"hidden":true,"merged":[[29,1,29,4],[29,5,29,7],[41,1,41,9],[34,1,34,9],[37,1,37,4],[37,5,37,7],[20,1,20,4],[20,5,20,7],[22,1,22,4],[22,5,22,7],[26,1,26,9],[13,1,13,4],[13,5,13,7],[5,14,6,14],[15,1,15,4],[15,5,15,7],[5,16,6,16],[5,17,5,19],[5,20,6,20],[5,21,5,23],[8,1,8,4],[8,5,8,7],[4,16,4,19],[4,20,4,23],[5,1,6,1],[5,2,6,2],[5,3,5,4],[5,5,6,5],[5,6,6,6],[5,7,6,7],[5,8,6,8],[5,9,6,9],[4,10,4,14],[5,10,6,10],[5,11,6,11],[5,12,6,12],[5,13,6,13],[5,15,6,15],[0,1,0,9],[2,1,2,9],[4,0,6,0],[4,1,4,7],[4,8,4,9]]}
[null,"Az összegző munkalap mintasorai"]
[]
[null,"Az alábbi táblázat azokat a mintasorokat tartalmazza, amelyeket a nyilvántartó munkalapokat összesítő makró az \"Összesítés\" munkalapra másol. Ezt a munkalapot nem szabad megváltoztatni, emiatt célszerű a munkalapot rejtett, vagy \"very hidden\" állapotban tartani.\n\nÖsszegző rekordok prototípusai\nAz \"A\" oszlopban található sortípus jelzés különböző szerepű összegző rekordokat azonosít:\n\"N\": névrekord, az összegzésben résztvevő szervezeti egység nevét és MGR kódját tartalmazza\n\"P\": projekt rekord, a szervezeti egység rezsi nyilvántartó lapjának minden szerződéséhez egy ilyen rekord tartozik,\n        az ottani \"A\" és \"S\" rekordok összeszerkesztett változata\n\"M\": mindösszesen, az adott szervezeti egység összes szerződésének bevételi, rezsi és tartozási összegei,\n         a rezsi nyilvántartó lapok \"M\" rekordjának tömörített változata\n\"E\": egyesített összeg rekord, a nyilvántartásban szereplő összes szervezeti egység \"M\" rekordjainak összege\n(Az \"A\" oszlopban valójában egy kétkarakteres szöveg áll, KARAKTER(160)&\"c\" formátumban, ahol a \"c\" karakter a fenti N, P, M vagy E betűk egyike.)"]
[]
[{"$f":"CHAR(160)&\"Rekord\"","v":" Rekord"},"Szerződés azonosító adatok",null,null,null,null,null,null,"Bevételek összesen",null,"Rezsi összegek megoszlása",null,null,null,null,"Önrész","Tartozások összesen",null,null,null,"Ebből esedékes tartozás"]
[null,"Rövid név","Témavezető","Futamidő",null,"Rezsi halasztás","Téma- szám","Max. rezsi","Tervezett","Tény","Levonható","Egyetemi","Kari","Intézeti","Tanszéki","Összes előleg","Szerződés \na karnak","Kar",null,null,"Szerződés \na karnak","Kar"]
[null,null,null,"kezdete","vége",null,null,null,null,null,null,null,null,null,null,null,null,"intézetnek","tanszéknek","egyetemnek",null,"intézetnek","tanszéknek","egyetemnek"]
[]
[{"$f":"CHAR(160)&\"N\"","v":" N"},"TTK Dékán (közös kari kiadások)",null,null,null,"Kód: 332"]
[]
[{"$f":"CHAR(160)&\"P\"","v":" P"}]
[{"$f":"CHAR(160)&\"P\"","v":" P"}]
[]
[{"$f":"CHAR(160)&\"M\"","v":" M"},"TTK Dékán (közös kari kiadások)",null,null,null,"Összesen:"]
[]
[{"$f":"CHAR(160)&\"N\"","v":" N"},"TTK Dékán (közös kari kiadások)",null,null,null,"Kód: 332"]
[]
[{"$f":"CHAR(160)&\"P\"","v":" P"}]
[{"$f":"CHAR(160)&\"P\"","v":" P"}]
[]
[{"$f":"CHAR(160)&\"M\"","v":" M"},"TTK Dékán (közös kari kiadások)",null,null,null,"Összesen:"]
[]
[{"$f":"CHAR(160)&\"E\"","v":" E"},"Szervezeti egységek összesen",null,null,null,null,null,null,{"$f":"SUMIF($A7:INDIRECT(\"$A\"&ROW()-1),CHAR(160)&\"M\",I7:INDIRECT(ADDRESS(ROW()-1,COLUMN())))","v":0},{"$f":"SUMIF($A7:INDIRECT(\"$A\"&ROW()-1),CHAR(160)&\"M\",J7:INDIRECT(ADDRESS(ROW()-1,COLUMN())))","v":0},{"$f":"SUMIF($A7:INDIRECT(\"$A\"&ROW()-1),CHAR(160)&\"M\",K7:INDIRECT(ADDRESS(ROW()-1,COLUMN())))","v":0},{"$f":"SUMIF($A7:INDIRECT(\"$A\"&ROW()-1),CHAR(160)&\"M\",L7:INDIRECT(ADDRESS(ROW()-1,COLUMN())))","v":0},{"$f":"SUMIF($A7:INDIRECT(\"$A\"&ROW()-1),CHAR(160)&\"M\",M7:INDIRECT(ADDRESS(ROW()-1,COLUMN())))","v":0},{"$f":"SUMIF($A7:INDIRECT(\"$A\"&ROW()-1),CHAR(160)&\"M\",N7:INDIRECT(ADDRESS(ROW()-1,COLUMN())))","v":0},{"$f":"SUMIF($A7:INDIRECT(\"$A\"&ROW()-1),CHAR(160)&\"M\",O7:INDIRECT(ADDRESS(ROW()-1,COLUMN())))","v":0},{"$f":"SUMIF($A7:INDIRECT(\"$A\"&ROW()-1),CHAR(160)&\"M\",P7:INDIRECT(ADDRESS(ROW()-1,COLUMN())))","v":0},{"$f":"SUMIF($A7:INDIRECT(\"$A\"&ROW()-1),CHAR(160)&\"M\",Q7:INDIRECT(ADDRESS(ROW()-1,COLUMN())))","v":0},{"$f":"SUMIF($A7:INDIRECT(\"$A\"&ROW()-1),CHAR(160)&\"M\",R7:INDIRECT(ADDRESS(ROW()-1,COLUMN())))","v":0},{"$f":"SUMIF($A7:INDIRECT(\"$A\"&ROW()-1),CHAR(160)&\"M\",S7:INDIRECT(ADDRESS(ROW()-1,COLUMN())))","v":0},{"$f":"SUMIF($A7:INDIRECT(\"$A\"&ROW()-1),CHAR(160)&\"M\",T7:INDIRECT(ADDRESS(ROW()-1,COLUMN())))","v":0},{"$f":"SUMIF($A7:INDIRECT(\"$A\"&ROW()-1),CHAR(160)&\"M\",U7:INDIRECT(ADDRESS(ROW()-1,COLUMN())))","v":0},{"$f":"SUMIF($A7:INDIRECT(\"$A\"&ROW()-1),CHAR(160)&\"M\",V7:INDIRECT(ADDRESS(ROW()-1,COLUMN())))","v":0},{"$f":"SUMIF($A7:INDIRECT(\"$A\"&ROW()-1),CHAR(160)&\"M\",W7:INDIRECT(ADDRESS(ROW()-1,COLUMN())))","v":0},{"$f":"SUMIF($A7:INDIRECT(\"$A\"&ROW()-1),CHAR(160)&\"M\",X7:INDIRECT(ADDRESS(ROW()-1,COLUMN())))","v":0}]
[]
[]
[]
[null,"Szervezeti egység azonosító blokk beillesztő sablon"]
[]
[]
[" N"]
[]
[]
[]
[]
[null,"Szervezeti egység összegző blokk beillesztő sablon"]
[]
[]
[" M",null,null,null,null,"Összesen:"]
[]
[]
[]
[null,"Projekt rekord beillesztő sablon"]
[]
[" P"]

{"sheet":"MintaÖsszes","index":6,"n_rows":9,"n_cols":24,"rows_kept":9,"cut":false,"hidden":true,"merged":[[8,1,8,4],[8,5,8,7],[5,14,6,14],[5,15,6,15],[5,16,6,16],[5,1,6,1],[5,2,6,2],[5,3,5,4],[5,5,6,5],[5,6,6,6],[5,7,6,7],[5,8,6,8],[5,9,6,9],[5,17,5,19],[5,20,6,20],[5,21,5,23],[4,16,4,19],[4,20,4,23],[1,1,1,7],[2,1,2,7],[4,0,6,0],[4,1,4,7],[4,8,4,9],[4,10,4,14],[5,10,6,10],[5,11,6,11],[5,12,6,12],[5,13,6,13]]}
[]
[null,"Rezsi nyilvántartás"]
[null,"Szervezeti egységek összesítő lapja"]
[]
[" Rekord","Szerződés azonosító adatok",null,null,null,null,null,null,"Bevételek összesen",null,"Rezsi összegek megoszlása",null,null,null,null,"Önrész","Tartozások összesen",null,null,null,"Ebből esedékes tartozás"]
[null,"Rövid név","Témavezető","Futamidő",null,"Rezsi halasztás","Téma- szám","Max. rezsi","Tervezett","Tény","Levonható","Egyetemi","Kari","Intézeti","Tanszéki","Összes előleg","Szerződés \na karnak","Kar",null,null,"Szerződés \na karnak","Kar"]
[null,null,null,"kezdete","vége",null,null,null,null,null,null,null,null,null,null,null,null,"intézetnek","tanszéknek","egyetemnek",null,"intézetnek","tanszéknek","egyetemnek"]
[]
[" E","Szervezeti egységek összesen",null,null,null,null,null,null,{"$f":"SUMIF($A7:INDIRECT(\"$A\"&ROW()-1),CHAR(160)&\"M\",I7:INDIRECT(ADDRESS(ROW()-1,COLUMN())))","v":0},{"$f":"SUMIF($A7:INDIRECT(\"$A\"&ROW()-1),CHAR(160)&\"M\",J7:INDIRECT(ADDRESS(ROW()-1,COLUMN())))","v":0},{"$f":"SUMIF($A7:INDIRECT(\"$A\"&ROW()-1),CHAR(160)&\"M\",K7:INDIRECT(ADDRESS(ROW()-1,COLUMN())))","v":0},{"$f":"SUMIF($A7:INDIRECT(\"$A\"&ROW()-1),CHAR(160)&\"M\",L7:INDIRECT(ADDRESS(ROW()-1,COLUMN())))","v":0},{"$f":"SUMIF($A7:INDIRECT(\"$A\"&ROW()-1),CHAR(160)&\"M\",M7:INDIRECT(ADDRESS(ROW()-1,COLUMN())))","v":0},{"$f":"SUMIF($A7:INDIRECT(\"$A\"&ROW()-1),CHAR(160)&\"M\",N7:INDIRECT(ADDRESS(ROW()-1,COLUMN())))","v":0},{"$f":"SUMIF($A7:INDIRECT(\"$A\"&ROW()-1),CHAR(160)&\"M\",O7:INDIRECT(ADDRESS(ROW()-1,COLUMN())))","v":0},{"$f":"SUMIF($A7:INDIRECT(\"$A\"&ROW()-1),CHAR(160)&\"M\",P7:INDIRECT(ADDRESS(ROW()-1,COLUMN())))","v":0},{"$f":"SUMIF($A7:INDIRECT(\"$A\"&ROW()-1),CHAR(160)&\"M\",Q7:INDIRECT(ADDRESS(ROW()-1,COLUMN())))","v":0},{"$f":"SUMIF($A7:INDIRECT(\"$A\"&ROW()-1),CHAR(160)&\"M\",R7:INDIRECT(ADDRESS(ROW()-1,COLUMN())))","v":0},{"$f":"SUMIF($A7:INDIRECT(\"$A\"&ROW()-1),CHAR(160)&\"M\",S7:INDIRECT(ADDRESS(ROW()-1,COLUMN())))","v":0},{"$f":"SUMIF($A7:INDIRECT(\"$A\"&ROW()-1),CHAR(160)&\"M\",T7:INDIRECT(ADDRESS(ROW()-1,COLUMN())))","v":0},{"$f":"SUMIF($A7:INDIRECT(\"$A\"&ROW()-1),CHAR(160)&\"M\",U7:INDIRECT(ADDRESS(ROW()-1,COLUMN())))","v":0},{"$f":"SUMIF($A7:INDIRECT(\"$A\"&ROW()-1),CHAR(160)&\"M\",V7:INDIRECT(ADDRESS(ROW()-1,COLUMN())))","v":0},{"$f":"SUMIF($A7:INDIRECT(\"$A\"&ROW()-1),CHAR(160)&\"M\",W7:INDIRECT(ADDRESS(ROW()-1,COLUMN())))","v":0},{"$f":"SUMIF($A7:INDIRECT(\"$A\"&ROW()-1),CHAR(160)&\"M\",X7:INDIRECT(ADDRESS(ROW()-1,COLUMN())))","v":0}]